fUST/lending_fUST_20251022
["ID","MTS","AMOUNT","RATE_DAILY","PERIOD"]
[391996679,1761070520787,150.0,0.00013219,30]
[391996680,1761070521377,150.0,0.00014421,30]
[391996681,1761070521690,150.0,0.00015623,30]
[391996682,1761070522678,150.0,0.00016824,30]
[391996683,1761070523129,150.0,0.00018026,30]
[391996686,1761070583303,316.27464219,0.00023988,2]
[391996687,1761070584922,313.95297315,0.00023979,2]
[391996688,1761070586822,358.80339788,0.00023979,2]
[391996689,1761070589795,150.0,0.00020431,2]
[391996690,1761070590191,150.0,0.00022288,2]
[391996691,1761070594601,150.0,0.00014108,30]
[391996692,1761070595080,150.0,0.00015391,30]
[391996693,1761070595513,343.64601407,0.00015068,2]
[391996694,1761070664027,150.0,0.00020375,2]
[391996695,1761070664469,150.0,0.00022228,2]
[391996696,1761070734979,150.0,0.00020259,2]
[391996697,1761070735416,150.0,0.00022101,2]
[391996698,1761070735940,150.0,0.00023943,2]
[391996699,1761070805417,150.0,0.00020263,2]
[391996700,1761070805865,150.0,0.00022105,2]
[391996701,1761070806267,150.0,0.00023948,2]
[391996702,1761070872491,150.0,0.00020322,2]
[391996703,1761070872916,150.0,0.00022169,2]
[391996704,1761070873326,150.0,0.00024017,2]
[391996705,1761071149751,500.0,0.00024,14]
[391996709,1761071274149,153.0,0.00024066,2]
[391996710,1761071282558,153.0,0.00024065,2]
[391996712,1761071359794,417.15472785,0.00024072,2]
[391996722,1761071432477,-300.0,0.00024141,2]
[391996723,1761071432487,-300.0,0.00024141,2]
[391996724,1761071432497,-300.0,0.00024141,2]
[391996726,1761071432507,-116.79279414,0.00024141,2]
[391996750,1761071438312,-183.20720586,0.00024141,2]
[391996751,1761071438322,-300.0,0.00024141,2]
[391996752,1761071438333,-1200.0,0.00024141,2]
[391996753,1761071438342,-1120.72466247,0.00024142,2]
[391996754,1761071438356,-6793.98972704,0.00024142,2]
[391996755,1761071438385,-1004.38909799,0.00024142,2]
[391996756,1761071438396,-1619.38572393,0.00024142,2]
[391996757,1761071438407,-895.79620322,0.00024142,2]
[391996758,1761071438423,-1900.61166059,0.00024142,2]
[391996759,1761071438436,-479.76869012,0.00024686,2]
[391996760,1761071438445,-3562.80100511,0.00024698,30]
[391996786,1761071487446,2278.52924938,0.00023988,2]
[391996787,1761071489264,1760.6816927,0.00023931,2]
[391996788,1761071491078,2748.3140797,0.00023931,2]
[391996789,1761071499152,339.33025037,0.00021818,2]
[391996790,1761071499179,4660.66974963,0.00021818,2]
[391996792,1761071516639,150.0,0.00020402,2]
[391996793,1761071517045,150.0,0.00022257,2]
[391996794,1761071521467,150.0,0.00013279,30]
[391996795,1761071521937,150.0,0.00014486,30]
[391996796,1761071522327,150.0,0.00015693,30]
[391996797,1761071522751,150.0,0.000169,30]
[391996798,1761071523229,150.0,0.00018107,30]
[391996799,1761071523613,150.0,0.00019314,30]
[391996800,1761071577670,3511.5726893,0.00023689,2]
[391996801,1761071592293,150.0,0.00020096,2]
[391996802,1761071592695,150.0,0.00021922,2]
[391996803,1761071593125,150.0,0.00023749,2]
[391996804,1761071596565,150.0,0.00013264,30]
[391996805,1761071596990,150.0,0.0001447,30]
[391996806,1761071597393,150.0,0.00015676,30]
[391996808,1761071633857,5000.0,0.00024072,2]
[391996809,1761071655843,588.4373107,0.00024072,2]
[391996810,1761071655866,687.22268937,0.00024072,2]
[391996811,1761071664104,150.0,0.00020063,2]
[391996812,1761071664509,150.0,0.00021887,2]
[391996813,1761071664912,150.0,0.00023711,2]
[391996814,1761071679527,942.648925,0.00030137,120]
[391996815,1761071693280,5000.0,0.00024072,2]
[391996816,1761071716352,1969.05086618,0.00024072,2]
[391996817,1761071735149,150.0,0.00020285,2]
[391996818,1761071736089,150.0,0.0002213,2]
[391996819,1761071736626,150.0,0.00023974,2]
[391996820,1761071807208,150.0,0.00020276,2]
[391996821,1761071807588,150.0,0.0002212,2]
[391996822,1761071808118,150.0,0.00023963,2]
[391996823,1761071826607,993.73644445,0.00024072,2]
[391996824,1761071826629,4006.26355555,0.00024072,2]
[391996825,1761071834408,3280.11071975,0.00024072,2]
[391996826,1761071850737,273.26661126,0.00024072,2]
[391996827,1761071873519,150.0,0.0002011,2]
[391996828,1761071881867,150.0,0.0003013,120]
[391996829,1761071912160,291.0,0.0003013,120]
[391996830,1761072002672,150.0,0.00020156,2]
[391996831,1761072003180,150.0,0.00021988,2]
[391996832,1761072003557,150.0,0.00023821,2]
[391996833,1761072006928,150.0,0.00014054,30]
[391996834,1761072007415,150.0,0.00015332,30]
[391996835,1761072007824,150.0,0.0001661,30]
[391996836,1761072008198,150.0,0.00017887,30]
[391996837,1761072075560,150.0,0.00020106,2]
[391996838,1761072075824,150.0,0.00021933,2]
[391996839,1761072076251,150.0,0.00023761,2]
[391996840,1761072079548,150.0,0.0001294,30]
[391996841,1761072103188,-180.950014,0.00024097,2]
[391996842,1761072103219,-470.17331632,0.00024302,2]
[391996843,1761072103247,-873.05679783,0.00024598,2]
[391996844,1761072103276,-1200.0,0.00024672,2]
[391996845,1761072103305,-500.0,0.00024673,2]
[391996846,1761072103333,-300.0,0.00024697,2]
[391996847,1761072105583,-8594.53062521,0.00024698,30]
[391996848,1761072105654,-10000.01,0.00024698,30]
[391996849,1761072105669,-10000.01,0.00024698,30]
[391996850,1761072105683,-10000.01,0.00024698,30]
[391996851,1761072105697,-10000.01,0.00024698,30]
[391996852,1761072105711,-10000.01,0.00024698,30]
[391996853,1761072109064,-2056.23875098,0.00024698,30]
[391996854,1761072109097,-166.0,0.00024698,3]
[391996855,1761072109127,-886.32315773,0.00025221,2]
[391996856,1761072109158,-724.65002666,0.00025221,2]
[391996857,1761072109227,-2333.58612926,0.00025221,2]
[391996858,1761072109258,-554.80451325,0.00025302,2]
[391996859,1761072109291,-8890.4009735,0.00025563,2]
[391996860,1761072109315,-10000.01,0.00025563,2]
[391996861,1761072109422,-10000.01,0.00025563,2]
[391996862,1761072109544,-10000.01,0.00025563,2]
[391996863,1761072109671,-10000.01,0.00025563,2]
[391996864,1761072109788,-2374.4567108,0.00025563,2]
[391996865,1761072109811,-5251.0965784,0.00025563,2]
[391996866,1761072109957,-1044.18,0.00025563,3]
[391996867,1761072109988,-522.09,0.00025563,3]
[391996868,1761072110018,-522.09,0.00025563,3]
[391996869,1761072110049,-379.93,0.00025563,10]
[391996870,1761072110126,-5063.43,0.00025573,2]
[391996871,1761072110297,-10000.01,0.00025573,2]
[391996872,1761072110446,-10000.01,0.00025573,2]
[391996873,1761072110595,-10000.01,0.00025573,2]
[391996874,1761072110719,-10000.01,0.00025573,2]
[391996875,1761072110918,-658.396122,0.00025551,2]
[391996876,1761072110953,-8683.217756,0.00025573,2]
[391996877,1761072111071,-1753.8444412,0.00025573,2]
[391996878,1761072111103,-265.260532,0.00025573,2]
[391996879,1761072111140,-150.0,0.00025589,2]
[391996880,1761072111183,-1313.37639179,0.00025625,2]
[391996881,1761072111282,-3035.04727002,0.00025662,2]
[391996882,1761072111296,-10000.01,0.00025662,2]
[391996883,1761072115298,-10000.01,0.00025662,2]
[391996884,1761072115323,-10000.01,0.00025662,2]
[391996885,1761072115337,-10000.01,0.00025662,2]
[391996886,1761072115422,-10000.01,0.00025662,2]
[391996887,1761072115555,-3480.89699268,0.00025662,2]
[391996888,1761072115590,-3038.21601464,0.00025672,2]
[391996889,1761072115667,-10000.01,0.00025672,2]
[391996890,1761072148599,150.0,0.00019979,2]
[391996891,1761072148991,150.0,0.00021795,2]
[391996892,1761072149429,150.0,0.00023611,2]
[391996893,1761072217308,150.0,0.00020028,2]
[391996894,1761072217716,150.0,0.00021849,2]
[391996895,1761072218160,150.0,0.0002367,2]
[391996896,1761072240015,-285.1598176,0.00024828,2]
[391996897,1761072240046,-4429.6903648,0.00024953,2]
[391996898,1761072240309,-570.3096352,0.00024953,2]
[391996899,1761072240338,-449.67375973,0.00025079,2]
[391996900,1761072240369,-150.0,0.00025427,2]
[391996901,1761072240397,-300.0,0.00025671,2]
[391996902,1761072240545,-856.92770924,0.00025672,2]
[391996903,1761072240578,-5903.1155009,0.00025672,2]
[391996904,1761072240611,-2383.03908062,0.00025672,2]
[391996905,1761072240639,-298.2488611,0.00025672,2]
[391996906,1761072240668,-2231.39372276,0.00025672,2]
[391996907,1761072240710,-174.64667104,0.00025672,2]
[391996908,1761072240720,-382.29313651,0.00025673,2]
[391996909,1761072240731,-500.0,0.00025673,2]
[391996910,1761072240741,-500.0,0.00025673,2]
[391996911,1761072240751,-500.0,0.00025673,2]
[391996912,1761072240761,-501.04966487,0.00025673,2]
[391996913,1761072240771,-500.0,0.00025673,2]
[391996914,1761072240780,-300.0,0.000257,2]
[391996915,1761072240790,-198.97225457,0.00025965,2]
[391996916,1761072240799,-514.84070869,0.00025965,2]
[391996917,1761072240809,-158.5981906,0.00025969,2]
[391996918,1761072240832,-130.52120973,0.00025969,2]
[391996919,1761072240846,-243.0,0.00025969,2]
[391996920,1761072240860,-243.0,0.00025969,2]
[391996921,1761072240873,-400.00831529,0.00025969,2]
[391996922,1761072240886,-286.07,0.0002597,10]
[391996923,1761072240900,-238.39,0.0002597,10]
[391996924,1761072240911,-198.66,0.0002597,10]
[391996925,1761072240923,-500.0,0.00025973,2]
[391996926,1761072240933,-143.3895556,0.00025973,2]
[391996927,1761072240957,-298.2488611,0.00025973,2]
[391996928,1761072240975,-58.3615833,0.00025973,2]
[391996929,1761072240987,-500.0,0.00025973,2]
[391996930,1761072240999,-500.0,0.00025973,2]
[391996931,1761072241011,-500.0,0.00025973,2]
[391996932,1761072241024,-500.0,0.00025973,2]
[391996933,1761072241036,-347.6788105,0.00025973,2]
[391996934,1761072241079,-152.3211895,0.00025973,2]
[391996935,1761072241117,-158.02096538,0.00025973,2]
[391996936,1761072241160,-501.4473781,0.00025973,2]
[391996937,1761072241201,-500.0,0.00025973,2]
[391996938,1761072241240,-158.09830648,0.00025973,2]
[391996939,1761072241273,-500.0,0.00025973,2]
[391996940,1761072241307,-473.25744716,0.00025973,2]
[391996941,1761072241342,-257.1679022,0.00025973,2]
[391996942,1761072241377,-577.1107497,0.00025973,2]
[391996943,1761072241414,-522.68705568,0.00025973,2]
[391996944,1761072241450,-500.0,0.00025973,2]
[391996945,1761072241479,-500.0,0.00025973,2]
[391996946,1761072241528,-500.0,0.00025973,2]
[391996947,1761072241563,-500.0,0.00025973,2]
[391996948,1761072241595,-500.0,0.00025973,2]
[391996949,1761072241629,-500.0,0.00025973,2]
[391996950,1761072241661,-237.00803039,0.00025973,2]
[391996951,1761072241694,-500.35577158,0.00025973,2]
[391996952,1761072241728,-158.30559823,0.00025973,2]
[391996953,1761072241761,-293.74716204,0.00025973,2]
[391996954,1761072241793,-500.0,0.00025973,2]
[391996955,1761072241826,-500.0,0.00025973,2]
[391996956,1761072241859,-151.0,0.00025973,7]
[391996957,1761072241892,-153.826732,0.00025973,7]
[391996958,1761072241924,-192.743219,0.00025973,7]
[391996959,1761072241956,-151.0,0.00025973,7]
[391996960,1761072241986,-151.0,0.00025973,7]
[391996961,1761072242034,-151.0,0.00025973,7]
[391996962,1761072242070,-362.893061,0.00025973,7]
[391996963,1761072242104,-151.0,0.00025973,7]
[391996964,1761072242138,-362.893061,0.00025973,7]
[391996965,1761072242170,-151.0,0.00025973,7]
[391996966,1761072242207,-362.893061,0.00025973,7]
[391996967,1761072242240,-151.0,0.00025973,7]
[391996968,1761072242274,-362.893061,0.00025973,7]
[391996969,1761072242308,-151.0,0.00025973,7]
[391996970,1761072242341,-151.0,0.00025973,7]
[391996971,1761072242373,-151.0,0.00025973,7]
[391996972,1761072242408,-151.0,0.00025973,7]
[391996973,1761072242443,-151.0,0.00025973,7]
[391996974,1761072242475,-151.0,0.00025973,7]
[391996975,1761072242505,-287.394986,0.00025973,7]
[391996976,1761072242539,-287.394986,0.00025973,7]
[391996977,1761072242786,-287.394986,0.00025973,7]
[391996978,1761072242819,-287.394986,0.00025973,7]
[391996979,1761072242848,-151.0,0.00025973,7]
[391996980,1761072242876,-151.0,0.00025973,7]
[391996981,1761072242905,-151.0,0.00025973,7]
[391996982,1761072242933,-151.0,0.00025973,7]
[391996983,1761072242960,-151.0,0.00025973,7]
[391996984,1761072242988,-116.705624,0.00025973,7]
[391996985,1761072243078,-34.294376,0.00025973,7]
[391996986,1761072243105,-151.0,0.00025973,7]
[391996987,1761072243133,-253.222268,0.00025973,7]
[391996988,1761072243161,-253.222268,0.00025973,7]
[391996989,1761072243200,-253.222268,0.00025973,7]
[391996990,1761072243230,-253.222268,0.00025973,7]
[391996991,1761072243259,-277.418358,0.0002598,7]
[391996992,1761072243289,-277.418358,0.0002598,7]
[391996993,1761072243317,-277.418358,0.0002598,7]
[391996994,1761072243345,-277.418358,0.0002598,7]
[391996995,1761072243373,-151.0,0.0002598,7]
[391996996,1761072243402,-151.0,0.0002598,7]
[391996997,1761072243431,-151.0,0.0002598,7]
[391996998,1761072243458,-163.0,0.0002598,3]
[391996999,1761072243487,-163.0,0.0002598,3]
[391997000,1761072243518,-151.0,0.0002598,7]
[391997001,1761072243546,-151.0,0.0002598,7]
[391997002,1761072243574,-151.0,0.0002598,7]
[391997003,1761072243601,-151.0,0.0002598,7]
[391997004,1761072243629,-151.0,0.0002598,7]
[391997005,1761072243658,-151.0,0.0002598,7]
[391997006,1761072243686,-151.0,0.0002598,7]
[391997007,1761072243714,-237.458576,0.0002598,7]
[391997008,1761072243742,-151.0,0.0002598,7]
[391997009,1761072243770,-151.0,0.0002598,2]
[391997010,1761072243799,-151.0,0.0002598,7]
[391997011,1761072243827,-151.0,0.0002598,7]
[391997012,1761072243945,-151.0,0.0002598,7]
[391997013,1761072243972,-161.392028,0.0002598,7]
[391997014,1761072244001,-151.0,0.0002598,7]
[391997015,1761072244029,-151.0,0.0002598,7]
[391997016,1761072244057,-213.683836,0.0002598,7]
[391997017,1761072244086,-151.0,0.0002598,7]
[391997018,1761072244114,-151.0,0.0002598,7]
[391997019,1761072244143,-152.370941,0.0002598,7]
[391997020,1761072244171,-151.0,0.0002598,7]
[391997021,1761072244206,-151.0,0.0002598,7]
[391997022,1761072244235,-195.238872,0.0002598,7]
[391997023,1761072244265,-151.0,0.0002598,7]
[391997024,1761072244292,-151.0,0.0002598,7]
[391997025,1761072244319,-375.548694,0.0002598,7]
[391997026,1761072244346,-549.1,0.0002598,2]
[391997027,1761072244373,-375.548694,0.0002598,7]
[391997028,1761072244401,-375.548694,0.0002598,7]
[391997029,1761072244432,-375.548694,0.0002598,7]
[391997030,1761072244461,-151.0,0.0002598,7]
[391997031,1761072244490,-153.463196,0.0002598,7]
[391997032,1761072244519,-271.354589,0.0002598,7]
[391997033,1761072244549,-271.354589,0.0002598,7]
[391997034,1761072244728,-151.0,0.0002598,7]
[391997035,1761072244757,-271.354589,0.0002598,7]
[391997036,1761072244786,-271.354589,0.0002598,7]
[391997037,1761072244817,-151.0,0.0002598,7]
[391997038,1761072244966,-151.0,0.0002598,7]
[391997039,1761072244997,-151.0,0.0002598,7]
[391997040,1761072245029,-186.831519,0.0002598,7]
[391997041,1761072245060,-151.0,0.0002598,7]
[391997042,1761072245089,-151.0,0.0002598,7]
[391997043,1761072245117,-151.0,0.0002598,7]
[391997044,1761072245146,-151.0,0.0002598,7]
[391997045,1761072245177,-151.0,0.0002598,7]
[391997046,1761072245207,-151.0,0.0002598,7]
[391997047,1761072245236,-151.0,0.0002598,7]
[391997048,1761072245268,-362.893061,0.0002598,7]
[391997049,1761072245295,-151.0,0.0002598,7]
[391997050,1761072245324,-362.893061,0.0002598,7]
[391997051,1761072245352,-151.0,0.0002598,7]
[391997052,1761072245384,-362.893061,0.0002598,7]
[391997053,1761072245417,-214.306832,0.0002598,7]
[391997054,1761072245446,-362.893061,0.0002598,7]
[391997055,1761072245475,-151.0,0.0002598,7]
[391997056,1761072245504,-209.827988,0.0002598,7]
[391997057,1761072245536,-151.0,0.0002598,7]
[391997058,1761072245564,-108.514478,0.0002598,7]
[391997059,1761072245724,-42.485522,0.0002598,7]
[391997060,1761072245753,-151.0,0.0002598,7]
[391997061,1761072245783,-151.0,0.0002598,7]
[391997062,1761072245814,-287.394986,0.0002598,7]
[391997063,1761072245843,-287.394986,0.0002598,7]
[391997064,1761072245876,-287.394986,0.0002598,7]
[391997065,1761072245905,-287.394986,0.0002598,7]
[391997066,1761072245934,-151.0,0.0002598,7]
[391997067,1761072245965,-151.0,0.0002598,7]
[391997068,1761072246000,-151.0,0.0002598,7]
[391997069,1761072246032,-151.0,0.0002598,7]
[391997070,1761072246063,-151.0,0.0002598,7]
[391997071,1761072246093,-151.0,0.0002598,7]
[391997072,1761072246122,-253.222268,0.0002598,7]
[391997073,1761072246149,-253.222268,0.0002598,7]
[391997074,1761072246181,-253.222268,0.0002598,7]
[391997075,1761072246209,-253.222268,0.0002598,7]
[391997076,1761072246239,-183.22,0.0002598,10]
[391997077,1761072250083,-5000.0,0.00024579,2]
[391997078,1761072250429,-8803.81111752,0.0002598,2]
[391997079,1761072250447,-10000.01,0.0002598,2]
[391997080,1761072250492,-165.55,0.0002597,10]
[391997081,1761072250503,-9834.46,0.0002598,2]
[391997082,1761072250575,-5000.0,0.0002598,2]
[391997083,1761072250588,-0.01,0.0002598,2]
[391997084,1761072250602,-10000.01,0.0002598,2]
[391997085,1761072250621,-10000.01,0.0002598,2]
[391997086,1761072250635,-10000.01,0.0002598,2]
[391997087,1761072270634,300.0,0.000237,2]
[391997088,1761072280970,300.0,0.000237,2]
[391997089,1761072283121,150.0,0.0002007,2]
[391997090,1761072283512,150.85,0.00021894,2]
[391997091,1761072283917,226.28,0.00023719,2]
[391997092,1761072287181,150.0,0.00012563,30]
[391997093,1761072287609,150.0,0.00013705,30]
[391997094,1761072288004,150.0,0.00014847,30]
[391997095,1761072288403,150.0,0.00015989,30]
[391997096,1761072288915,161.63,0.00017131,30]
[391997097,1761072289198,193.96,0.00018273,30]
[391997098,1761072289610,226.28,0.00019415,30]
[391997099,1761072290014,258.61,0.00020558,30]
[391997100,1761072290410,262.89575367,0.000217,30]
[391997101,1761072293513,300.0,0.000237,2]
[391997102,1761072304640,300.0,0.000237,2]
[391997103,1761072314982,300.0,0.000237,2]
[391997104,1761072326102,300.0,0.000237,2]
[391997105,1761072331188,300.0,0.000237,2]
[391997106,1761072337224,300.0,0.000237,2]
[391997107,1761072341682,300.0,0.000237,2]
[391997108,1761072348144,300.0,0.000237,2]
[391997109,1761072352451,300.0,0.000237,2]
[391997110,1761072358598,150.0,0.00019981,2]
[391997111,1761072358996,150.0,0.00021797,2]
[391997112,1761072359378,150.0,0.00023613,2]
[391997113,1761072362613,150.0,0.00013126,30]
[391997114,1761072363005,300.0,0.000237,2]
[391997115,1761072363038,150.0,0.0001432,30]
[391997116,1761072363496,150.0,0.00015513,30]
[391997117,1761072363915,150.0,0.00016706,30]
[391997118,1761072364421,150.0,0.000179,30]
[391997119,1761072364843,150.0,0.00019093,30]
[391997120,1761072365322,300.0,0.000237,2]
[391997121,1761072373171,300.0,0.000237,2]
[391997122,1761072376164,300.0,0.000237,2]
[391997123,1761072383633,300.0,0.000237,2]
[391997124,1761072387619,300.0,0.000237,2]
[391997125,1761072390160,300.0,0.000237,2]
[391997126,1761072432840,150.0,0.00020138,2]
[391997127,1761072433252,150.0,0.00021969,2]
[391997128,1761072433669,150.0,0.000238,2]
[391997129,1761072437011,150.0,0.00013186,30]
[391997130,1761072437402,150.0,0.00014384,30]
[391997131,1761072451055,269.50424633,0.00024072,2]
[391997132,1761072451077,4730.49575367,0.00024072,2]
[391997133,1761072459295,5000.0,0.00024072,2]
[391997134,1761072467452,5000.0,0.00024072,2]
[391997135,1761072483982,5000.0,0.00024072,2]
[391997136,1761072491877,0.01,0.00024072,2]
[391997137,1761072491900,4999.99,0.00024072,2]
[391997138,1761072503541,150.0,0.00020146,2]
[391997139,1761072504142,150.0,0.00021978,2]
[391997140,1761072504875,150.0,0.00023809,2]
[391997141,1761072507348,4550.02,0.00024072,2]
[391997142,1761072507371,449.98,0.00024072,2]
[391997143,1761072515158,5000.0,0.00024072,2]
[391997144,1761072520804,4550.03,0.00024,2]
[391997145,1761072520826,1181.63,0.00024,2]
[391997146,1761072530165,5000.0,0.00024072,2]
[391997147,1761072538558,3818.38,0.00024072,2]
[391997148,1761072538585,1181.62,0.00024072,2]
[391997149,1761072554016,5000.0,0.00024072,2]
[391997150,1761072555566,159.0,8.3e-07,2]
[391997151,1761072561706,3659.39,0.00024072,2]
[391997152,1761072561729,1340.61,0.00024072,2]
[391997153,1761072573307,150.0,0.00020147,2]
[391997154,1761072573698,150.0,0.00021979,2]
[391997155,1761072574089,150.0,0.0002381,2]
[391997156,1761072576574,5000.0,0.00024072,2]
[391997157,1761072584448,3209.4,0.00024072,2]
[391997158,1761072584472,1790.6,0.00024072,2]
[391997159,1761072600348,5000.0,0.00024072,2]
[391997160,1761072608218,3209.41,0.00024072,2]
[391997161,1761072608242,1790.59,0.00024072,2]
[391997162,1761072623151,5000.0,0.00024072,2]
[391997163,1761072630914,3209.42,0.00024072,2]
[391997164,1761072630937,1790.58,0.00024072,2]
[391997203,1761072632515,-678.7218585,0.00024357,2]
[391997205,1761072632525,-144.2381415,0.00024596,2]
[391997209,1761072632568,-286.8271355,0.00024596,2]
[391997211,1761072632578,-636.80651151,0.00024603,2]
[391997213,1761072632588,-440.68028453,0.00024653,2]
[391997215,1761072632597,-666.0,0.00024813,2]
[391997217,1761072632606,-110.68492823,0.00025187,2]
[391997219,1761072632618,-92.61688647,0.00025187,2]
[391997221,1761072632627,-150.0,0.0002563,2]
[391997223,1761072632637,-520.00273575,0.00025653,2]
[391997225,1761072632647,-1200.0,0.00025888,2]
[391997227,1761072632656,-1095.6165337,0.00025889,2]
[391997272,1761072638526,-2691.1463234,0.00025889,2]
[391997273,1761072638535,-970.55819268,0.0002589,2]
[391997274,1761072638545,-300.0,0.00025964,2]
[391997275,1761072638555,-500.0,0.00025973,2]
[391997276,1761072638565,-500.0,0.00025973,2]
[391997277,1761072638574,-504.07427445,0.00025973,2]
[391997278,1761072638584,-514.84070869,0.00025974,2]
[391997279,1761072638593,-198.97225457,0.00025974,2]
[391997280,1761072638603,-827.78,0.0002598,10]
[391997281,1761072638611,-8618.01478332,0.0002598,2]
[391997282,1761072638623,-4063.4245101,0.0002598,2]
[391997283,1761072640192,150.0,0.00020183,2]
[391997288,1761072640698,150.0,0.00022018,2]
[391997289,1761072640753,-199.23773281,0.00024953,2]
[391997290,1761072640764,-51.38173903,0.0002598,2]
[391997291,1761072640775,-7456.99890206,0.0002598,2]
[391997303,1761072641073,150.0,0.00023852,2]
[391997312,1761072643539,-558.0,0.0002598,2]
[391997313,1761072643595,-26934.65884609,0.0002598,2]
[391997314,1761072643605,-100000.0,0.0002599,2]
[391997315,1761072643614,-151.0,0.0002599,7]
[391997316,1761072643623,-151.0,0.0002599,7]
[391997317,1761072643632,-151.0,0.0002599,7]
[391997318,1761072643644,-151.0,0.0002599,7]
[391997319,1761072643653,-151.0,0.0002599,7]
[391997320,1761072643663,-151.0,0.0002599,7]
[391997321,1761072643673,-151.0,0.0002599,7]
[391997322,1761072643683,-151.0,0.0002599,7]
[391997323,1761072643694,-151.0,0.0002599,7]
[391997324,1761072643704,-151.0,0.0002599,7]
[391997325,1761072643713,-151.0,0.0002599,7]
[391997326,1761072643723,-151.0,0.0002599,7]
[391997327,1761072643733,-151.0,0.0002599,7]
[391997328,1761072643742,-151.0,0.0002599,7]
[391997329,1761072643752,-151.0,0.0002599,7]
[391997330,1761072643761,-151.0,0.0002599,7]
[391997331,1761072643772,-151.0,0.0002599,7]
[391997332,1761072643782,-284.922128,0.0002599,7]
[391997333,1761072643792,-284.922128,0.0002599,7]
[391997334,1761072643801,-284.922128,0.0002599,7]
[391997335,1761072643812,-284.922128,0.0002599,7]
[391997336,1761072643822,-151.0,0.0002599,7]
[391997337,1761072643831,-500.0,0.00026149,2]
[391997338,1761072643840,-500.0,0.00026149,2]
[391997339,1761072643849,-500.0,0.00026198,2]
[391997340,1761072643859,-1271.48837031,0.00026198,2]
[391997341,1761072643868,-500.0,0.00026204,2]
[391997342,1761072643880,-500.0,0.00026204,2]
[391997343,1761072643891,-1000.0,0.00026221,2]
[391997344,1761072643901,-500.0,0.00026259,2]
[391997345,1761072643910,-500.0,0.00026259,2]
[391997346,1761072643919,-500.0,0.00026313,2]
[391997347,1761072643928,-500.0,0.00026313,2]
[391997348,1761072643938,-500.0,0.00026368,2]
[391997349,1761072643947,-500.0,0.00026368,2]
[391997350,1761072643957,-227.5,0.000264,2]
[391997351,1761072643967,-225.0,0.00026411,14]
[391997352,1761072643976,-500.0,0.00026423,2]
[391997353,1761072643985,-500.0,0.00026423,2]
[391997354,1761072643995,-214.52922532,0.00026471,2]
[391997355,1761072644004,-386.15260558,0.00026471,2]
[391997356,1761072644014,-685.80702751,0.00026471,2]
[391997357,1761072644025,-306.62588132,0.00026471,2]
[391997358,1761072644035,-350.07914908,0.00026471,2]
[391997359,1761072644045,-500.0,0.00026472,2]
[391997360,1761072644055,-500.0,0.00026478,2]
[391997361,1761072644064,-500.0,0.00026478,2]
[391997362,1761072644073,-500.0,0.00026521,2]